bitfinex-derivatives/quotes_ETHF0:USTF0_20250502
["timestamp","ask_amount","ask_price","bid_price","bid_amount"]
[1746156903748,4.47509,1847.7,1847.5,1.08222]
[1746156903949,4.47509,1847.7,1847.5,2.82222]
[1746156904151,1.08221,1847.6,1847.5,5.436]
[1746156904450,1.6782,1847.6,1847.5,6.51827]
[1746156904650,0.8574,1847.7,1847.6,1.08221]
[1746156904952,1.93955,1847.7,1847.6,2.5629]
[1746156905250,3.61775,1847.7,1847.6,2.5629]
[1746156906253,3.61775,1847.7,1847.6,0.8229]
[1746156906555,1.08221,1847.6,1847.5,3.696]
[1746156906748,3.52141,1847.6,1847.5,3.696]
[1746156909155,1.08233,1847.4,1847.3,3.65504]
[1746156909958,1.603,1847.5,1847.3,3.65504]
[1746156910252,1.08233,1847.4,1847.3,7.35104]
[1746156911149,1.08233,1847.4,1847.3,4.5517]
[1746156912559,1.08233,1847.4,1847.3,3.696]
[1746156913558,1.603,1847.5,1847.4,1.08233]
[1746156913748,2.68527,1847.5,1847.4,3.65023]
[1746156913954,2.68527,1847.5,1847.4,2.5679]
[1746156914260,2.68527,1847.5,1847.4,6.2639]
[1746156914462,2.68527,1847.5,1847.4,4.5461]
[1746156915464,2.68527,1847.5,1847.4,3.696]
[1746156916259,1.08239,1847.3,1847.2,3.64221]
[1746156916563,1.08244,1847.2,1847.1,40.8]
[1746156916860,3.65494,1847.2,1847.1,40.8]
[1746156917759,4.46434,1847.2,1847.1,40.8]
[1746156919067,4.89028686,1847.2,1847.1,40.8]
[1746156922366,4.89028686,1847.2,1846.9,3.696]
[1746156922367,1.08256,1847.0,1846.9,3.696]
[1746156922768,1.50850686,1847.0,1846.9,44.496]
[1746156922962,1.50850686,1847.0,1846.9,3.696]
[1746156924972,3.24530686,1847.0,1846.9,4.5027]
[1746156925267,3.24530686,1847.0,1846.9,5.58532]
[1746156925771,3.24530686,1847.0,1846.9,4.5027]
[1746156929667,3.24530686,1847.0,1846.9,5.58532]
[1746156929871,3.24530686,1847.0,1846.9,4.5027]
[1746156931365,3.24530686,1847.0,1846.9,5.58532]
[1746156931767,3.24530686,1847.0,1846.9,4.5027]
[1746156932571,3.24530686,1847.0,1846.9,5.58532]
[1746156932774,3.24530686,1847.0,1846.9,4.5027]
[1746156934468,3.24530686,1847.0,1846.9,5.58532]
[1746156935375,3.24530686,1847.0,1846.9,4.5027]
[1746156935774,3.24530686,1847.0,1846.9,6.093]
[1746156937178,3.24530686,1847.0,1846.9,7.17562]
[1746156937777,3.24530686,1847.0,1846.9,6.093]
[1746156938378,3.24530686,1847.0,1846.9,7.17562]
[1746156938976,3.24530686,1847.0,1846.9,47.97562]
[1746156941184,0.42594686,1847.0,1846.9,47.97562]
[1746156941379,0.42594686,1847.0,1846.9,52.97562]
[1746156942083,9.43624853,1847.3,1847.2,1.08244]
[1746156942474,9.86248431,1847.3,1847.2,1.08244]
[1746156942973,9.86248431,1847.3,1847.2,3.50774]
[1746156943282,9.86248431,1847.3,1847.2,7.20374]
[1746156944281,6.26423578,1847.3,1847.2,7.20374]
[1746156944483,0.42623578,1847.3,1847.2,7.20374]
[1746156945282,0.42623578,1847.3,1847.2,10.41154]
[1746156948289,0.42623578,1847.3,1847.2,51.21154]
[1746156952400,0.8648,1847.5,1847.4,1.08233]
[1746156952600,0.8648,1847.5,1847.4,4.29013]
[1746156952905,3.59824853,1847.7,1847.6,1.08221]
[1746156953098,4.02413647,1847.7,1847.6,1.08221]
[1746156953402,4.02413647,1847.7,1847.6,41.88221]
[1746156953602,4.02413647,1847.7,1847.6,43.61981]
[1746156955303,2.44834853,1847.7,1847.6,61.19961]
[1746156955604,8.53e-06,1847.7,1847.6,61.19961]
[1746156956797,8.53e-06,1847.7,1847.6,56.63748547]
[1746156958101,3.3581,1848.0,1847.9,1.08203]
[1746156958399,3.3581,1848.0,1847.9,4.28983]
[1746156958801,3.3581,1848.0,1847.9,45.08983]
[1746156960009,3.2078,1848.4,1848.3,1.0818]
[1746156960211,6.81396,1848.4,1848.2,1.08183]
[1746156960409,1.716,1848.3,1848.2,1.08183]
[1746156960613,2.5364,1848.3,1848.2,1.08183]
[1746156961707,2.5364,1848.3,1848.2,2.74423]
[1746156962712,2.5364,1848.3,1848.2,1.08183]
[1746156964915,3.6182,1848.3,1848.2,1.08183]
[1746156965114,7.3142,1848.3,1848.2,1.08183]
[1746156965508,7.3142,1848.3,1848.1,4.28968]
[1746156965709,1.6047,1848.2,1848.1,4.28968]
[1746156966418,2.68658,1848.2,1848.1,1.08192]
[1746156966924,3.1106142,1848.2,1848.1,1.08192]
[1746156967116,2.68658,1848.2,1848.1,1.08192]
[1746156967315,6.38258,1848.2,1848.1,1.08192]
[1746156967716,5.3007,1848.2,1848.1,1.08192]
[1746156967917,5.3007,1848.2,1848.1,4.28972]
[1746156968117,1.6047,1848.2,1848.1,4.28972]
[1746156968321,1.6047,1848.2,1848.1,5.16192]
[1746156974023,1.6047,1848.2,1848.1,4.28972]
[1746156974221,2.02955139,1848.2,1848.1,4.28972]
[1746156974722,1.6047,1848.2,1848.1,4.28972]
[1746156975423,2.68656,1848.2,1848.1,4.28972]
[1746156976125,2.68656,1848.2,1848.1,3.2078]
[1746156976324,6.80776456,1848.2,1848.1,3.2078]
[1746156976522,6.80776456,1848.2,1848.1,4.28972]
[1746156977124,6.80776456,1848.2,1848.1,3.2078]
[1746156977526,6.80776456,1848.2,1848.1,4.28972]
[1746156978925,5.72590456,1848.2,1848.1,4.28972]
[1746156980228,2.02990456,1848.2,1848.1,4.28972]
[1746156980732,0.42520456,1848.2,1848.1,4.28972]
[1746156981229,0.42520456,1848.2,1848.1,5.97012]
[1746156982228,2.02830456,1848.2,1848.1,5.97012]
[1746156986030,3.11016456,1848.2,1848.1,5.97012]
[1746156986231,2.02830456,1848.2,1848.1,5.97012]
[1746156986432,2.02830456,1848.2,1848.0,1.08193]
[1746156986433,3.11020456,1848.2,1848.0,1.08193]
[1746156986727,2.4766,1848.1,1848.0,1.08193]
[1746156987032,2.90180456,1848.1,1848.0,3.54273]
[1746156987329,6.59780456,1848.1,1848.0,3.54273]
[1746156989437,4.12120456,1848.1,1848.0,3.54273]
[1746156990231,0.42520456,1848.1,1848.0,3.54273]
[1746156990431,2.13680456,1848.1,1848.0,3.54273]
[1746156990832,2.13680456,1848.1,1848.0,1.87883]
[1746156991232,2.13680456,1848.1,1848.0,1.08193]
[1746156991626,3.21872456,1848.1,1847.9,44.798]
[1746156991933,3.78590456,1848.0,1847.9,44.798]
[1746156992432,3.78590456,1848.0,1847.9,45.88003]
[1746156995329,1.08203,1847.9,1847.8,5.0513]
[1746156995531,1.7361,1847.9,1847.8,4.53708]
[1746156995835,2.16130456,1847.9,1847.8,45.33708]
[1746156996534,2.16130456,1847.9,1847.8,47.06618]
[1746156997530,2.16130456,1847.9,1847.8,43.61118]
[1746156999039,2.16130456,1847.9,1847.8,41.88208]
[1746157000140,5.85730456,1847.9,1847.8,41.88208]
[1746157001033,5.85730456,1847.9,1847.8,43.59718]
[1746157001341,4.12120456,1847.9,1847.8,43.59718]
[1746157002339,0.42520456,1847.9,1847.8,43.59718]
[1746157004039,1.70822991,1848.2,1848.1,1.08192]
[1746157004346,1.32931128,1848.3,1848.2,1.08186]
[1746157004542,1.28e-06,1848.3,1848.2,1.88566]
[1746157004843,1.28e-06,1848.3,1848.2,50.26536]
[1746157005245,1.28e-06,1848.3,1848.2,53.96136]
[1746157005840,1.28e-06,1848.3,1848.2,48.96136]
[1746157006044,1.28e-06,1848.3,1848.2,53.96136]
[1746157006837,1.28e-06,1848.3,1848.2,49.37218104]
[1746157008043,1.28e-06,1848.3,1848.2,48.96136]
[1746157008745,10.54153488,1848.5,1848.4,1.08174]
[1746157008949,10.54153488,1848.5,1848.4,7.74354]
[1746157009345,10.54153488,1848.5,1848.4,48.54354]
[1746157012660,1.5863,1848.5,1848.4,48.54354]
[1746157025367,0.818,1848.6,1848.5,1.08168]
[1746157025569,0.818,1848.6,1848.5,3.61968]
[1746157025971,0.818,1848.6,1848.5,44.41968]
[1746157026969,0.818,1848.6,1848.5,41.88168]
[1746157028470,1.24144597,1848.6,1848.5,41.88168]
[1746157028974,0.818,1848.6,1848.5,41.88168]
[1746157029172,0.818,1848.6,1848.5,43.55418]
[1746157030176,1.24163333,1848.6,1848.5,43.55418]
[1746157030674,1.24163333,1848.6,1848.5,41.88168]
[1746157033663,1.24163333,1848.6,1848.5,43.60978]
[1746157034672,0.42363333,1848.6,1848.5,43.60978]
[1746157034878,0.42363333,1848.6,1848.5,44.40658]
[1746157036071,0.42363333,1848.6,1848.5,43.60978]
[1746157036262,1.25743333,1848.6,1848.5,41.88168]
[1746157036887,0.42363333,1848.6,1848.5,43.56688]
[1746157037106,0.42363333,1848.6,1848.5,44.37068]
[1746157037292,0.42363333,1848.6,1848.5,48.06668]
[1746157037495,2.4787,1849.0,1848.9,1.08145]
[1746157038196,2.4787,1849.0,1848.9,2.80565]
[1746157038401,6.1747,1849.0,1848.9,2.80565]
[1746157039093,2.4787,1849.0,1848.9,2.80565]
[1746157041479,2.4787,1849.0,1848.9,43.60565]
[1746157044182,3.485,1849.4,1848.9,42.5242]
[1746157044386,1.7162,1849.3,1849.2,1.08122]
[1746157045087,5.4122,1849.3,1849.2,1.08122]
[1746157046477,3.696,1849.3,1849.2,5.93732]
[1746157046683,3.696,1849.3,1849.2,6.74232]
[1746157047187,3.3209,1849.6,1849.5,1.0811]
[1746157047879,3.3209,1849.6,1849.5,2.7294]
[1746157048078,7.0169,1849.6,1849.5,2.7294]
[1746157048786,6.1531,1849.6,1849.5,2.7294]
[1746157050279,6.1531,1849.6,1849.5,1.0811]
[1746157051080,6.1531,1849.6,1849.4,7.75791]
[1746157051387,2.424,1849.5,1849.4,7.75791]
[1746157052085,6.12,1849.5,1849.4,7.75791]
[1746157052593,6.12,1849.5,1849.3,1.08121]
[1746157052884,1.7219,1849.4,1849.3,1.08121]
[1746157053085,5.4179,1849.4,1849.3,1.08121]
[1746157054087,5.4179,1849.4,1849.3,2.73661]
[1746157054384,5.4179,1849.4,1849.3,1.08121]
[1746157054774,5.84356717,1849.4,1849.3,1.08121]
[1746157055886,5.4179,1849.4,1849.3,1.08121]
[1746157056890,6.49907,1849.4,1849.2,7.75703]
[1746157057092,2.4488,1849.3,1849.2,7.75703]
[1746157057290,2.4488,1849.3,1849.2,4.28903]
[1746157057588,3.95580622,1849.3,1849.1,1.08129]
[1746157057786,2.4343,1849.2,1849.1,1.08129]
[1746157058188,6.1303,1849.2,1849.1,1.08129]
[1746157058389,6.55617402,1849.2,1849.1,1.08129]
[1746157060983,6.1303,1849.2,1849.1,1.08129]
[1746157062386,5.2952,1849.2,1849.1,1.08129]
[1746157062585,5.2952,1849.2,1849.1,2.77259]
[1746157063281,1.5992,1849.2,1849.1,2.77259]
[1746157064792,1.08118,1849.4,1849.2,1.08123]
[1746157064994,1.7045,1849.4,1849.3,1.0812]
[1746157065192,0.42653377,1849.3,1849.2,4.28903]
[1746157065794,2.13103377,1849.3,1849.2,4.28903]
[1746157066087,5.82703377,1849.3,1849.2,4.28903]
[1746157073095,6.90824377,1849.3,1849.2,4.28903]
[1746157073295,5.82703377,1849.3,1849.0,3.2078]
[1746157073597,1.08137,1849.1,1848.9,41.8814]
[1746157073894,1.7409,1849.0,1848.9,41.8814]
[1746157074294,2.16743377,1849.0,1848.9,41.8814]
[1746157075100,5.86343377,1849.0,1848.9,41.8814]
[1746157075401,6.94482377,1849.0,1848.9,41.8814]
[1746157075593,6.94482377,1849.0,1848.9,40.8]
[1746157075901,1.08149,1848.9,1848.7,4.54952]
[1746157076195,2.31524377,1848.8,1848.7,4.54952]
[1746157076396,2.31524377,1848.8,1848.6,1.08157]
[1746157076594,2.16743377,1848.7,1848.6,1.08162]
[1746157076796,2.16743377,1848.7,1848.6,41.88162]
[1746157077198,5.4369,1848.7,1848.6,41.88162]
[1746157077400,5.86364967,1848.7,1848.6,41.88162]
[1746157077701,6.94521967,1848.7,1848.6,40.8]
[1746157078699,5.86364967,1848.7,1848.6,41.88162]
[1746157079499,6.94521967,1848.7,1848.6,40.8]
[1746157079897,5.86364967,1848.7,1848.6,41.88162]
[1746157080293,5.86364967,1848.7,1848.6,43.57122]
[1746157085904,5.86364967,1848.7,1848.6,41.88162]
[1746157086298,5.86364967,1848.7,1848.6,45.08942]
[1746157086501,6.94521967,1848.7,1848.6,45.08942]
[1746157086701,6.94521967,1848.7,1848.6,40.8]
[1746157087307,1.08162,1848.6,1848.4,4.2895]
[1746157087501,0.8117,1848.5,1848.4,4.2895]
[1746157087808,1.6272,1848.5,1848.4,45.0895]
[1746157088005,2.05394967,1848.5,1848.4,45.0895]
[1746157088209,5.74994967,1848.5,1848.4,45.0895]
[1746157088506,7.32944967,1848.5,1848.4,45.0895]
[1746157088910,6.9027,1848.5,1848.4,45.0895]
[1746157090502,6.9027,1848.5,1848.4,41.8817]
[1746157090702,7.32852812,1848.5,1848.4,41.8817]
[1746157090899,8.41020812,1848.5,1848.4,40.8]
[1746157091705,8.41020812,1848.5,1848.4,41.88174]
[1746157092514,8.41020812,1848.5,1848.4,40.8]
[1746157092811,1.08174,1848.4,1848.3,1.08175]
[1746157093011,2.746,1848.4,1848.2,6.72712]
[1746157093213,6.442,1848.4,1848.3,1.0818]
[1746157093511,4.7778,1848.4,1848.3,1.0818]
[1746157093712,5.20332501,1848.4,1848.3,1.0818]
[1746157094816,4.12152501,1848.4,1848.3,1.0818]
[1746157095311,4.12152501,1848.4,1848.3,2.7437]
[1746157095508,3.696,1848.4,1848.3,2.7437]
[1746157097123,0.8117,1848.5,1848.4,1.08174]
[1746157097318,0.8117,1848.5,1848.4,5.95144]
[1746157097721,1.23739778,1848.5,1848.4,5.95144]
[1746157097921,2.31907778,1848.5,1848.4,5.95144]
[1746157098224,4.12169778,1848.5,1848.4,5.95144]
[1746157100918,3.696,1848.5,1848.4,5.95144]
[1746157101121,0.8648,1848.8,1848.7,1.08157]
[1746157101423,6.6758,1848.9,1848.8,1.08151]
[1746157101624,6.91943,1849.0,1848.8,1.08151]
[1746157101825,0.42641416,1848.9,1848.8,1.08151]
[1746157102021,0.42641416,1848.9,1848.8,2.74871]
[1746157102223,4.12241416,1848.9,1848.8,2.74871]
[1746157103326,4.12241416,1848.9,1848.8,1.6672]
[1746157103327,5.20386416,1848.9,1848.8,1.6672]
[1746157103824,1.08151,1848.8,1848.7,40.8]
[1746157104024,1.50792416,1848.8,1848.7,40.8]
[1746157104225,7.75822416,1848.8,1848.7,40.8]
[1746157104520,7.75822416,1848.8,1848.7,41.88157]
[1746157104726,1.08157,1848.7,1848.6,2.82898]
[1746157105025,2.76807,1848.7,1848.6,1.08158]
[1746157105215,6.46407,1848.7,1848.6,1.08158]
[1746157105422,6.89048416,1848.7,1848.6,2.82898]
[1746157106018,5.80891416,1848.7,1848.6,2.82898]
[1746157106825,6.89048416,1848.7,1848.6,2.82898]
[1746157108531,5.80891416,1848.7,1848.6,2.82898]
[1746157109527,6.89048416,1848.7,1848.6,2.82898]
[1746157109729,5.80891416,1848.7,1848.6,1.08162]
[1746157109930,5.80891416,1848.7,1848.6,2.77352]
[1746157111137,5.80891416,1848.7,1848.6,5.98132]
[1746157111429,4.12241416,1848.7,1848.6,5.98132]
[1746157113940,4.12241416,1848.7,1848.6,2.77352]
[1746157114445,6.90250416,1848.7,1848.5,41.88165]
[1746157114641,2.78012,1848.6,1848.5,40.8]
[1746157114943,4.02853416,1848.6,1848.5,40.8]
[1746157115142,7.72453416,1848.6,1848.5,40.8]
[1746157115543,7.72453416,1848.6,1848.5,41.88168]
[1746157116041,6.64291416,1848.6,1848.5,41.88168]
[1746157116244,5.82091416,1848.6,1848.5,41.88168]
[1746157116440,5.82091416,1848.6,1848.5,43.48538]
[1746157116940,6.90253416,1848.6,1848.5,43.48538]
[1746157117542,5.82091416,1848.6,1848.5,43.48538]
[1746157118546,4.12241416,1848.6,1848.5,43.48538]
[1746157119039,5.82041416,1848.6,1848.5,43.48538]
[1746157119239,2.12441416,1848.6,1848.5,43.48538]
[1746157119739,2.12441416,1848.6,1848.5,44.31668]
[1746157121249,5.82041416,1848.6,1848.5,44.31668]
[1746157123051,5.82041416,1848.6,1848.5,42.71298]
[1746157123252,2.12441416,1848.6,1848.5,42.71298]
[1746157124151,5.82041416,1848.6,1848.5,42.71298]
[1746157125551,5.82041416,1848.6,1848.5,44.34948]
[1746157126154,6.90203416,1848.6,1848.5,44.34948]
[1746157126353,6.90203416,1848.6,1848.4,4.28952]
[1746157126543,3.3948,1848.5,1848.4,4.28952]
[1746157126950,3.82121416,1848.5,1848.4,45.08952]
[1746157127153,7.51721416,1848.5,1848.4,45.08952]
[1746157127347,8.59889416,1848.5,1848.4,45.08952]
[1746157127547,7.51721416,1848.5,1848.4,45.08952]
[1746157128144,8.59889416,1848.5,1848.4,40.8]
[1746157128349,11.80669416,1848.5,1848.4,40.8]
[1746157129447,11.80669416,1848.5,1848.4,41.88174]
[1746157130156,6.65731416,1848.5,1848.4,41.88174]
[1746157130452,6.65731416,1848.5,1848.4,45.95464]
[1746157130955,6.65731416,1848.5,1848.4,47.68574]
[1746157131254,7.73899416,1848.5,1848.4,47.68574]
[1746157131554,6.65731416,1848.5,1848.4,47.68574]
[1746157133257,7.73899416,1848.5,1848.4,46.604]
[1746157133461,6.65731416,1848.5,1848.4,47.68574]
[1746157134156,4.12241416,1848.5,1848.4,47.68574]
[1746157134958,5.85261416,1848.5,1848.4,47.68574]
[1746157136455,4.12241416,1848.5,1848.4,47.68574]
[1746157136760,4.12241416,1848.5,1848.4,56.14574]
[1746157137255,3.60070911,1848.7,1848.6,1.08162]
[1746157137451,3.60070911,1848.9,1848.8,1.08151]
[1746157137658,4.02816215,1848.9,1848.8,4.28931]
[1746157137845,4.02816215,1848.9,1848.8,9.28931]
[1746157138044,3.60070911,1848.9,1848.8,10.90821]
[1746157139158,3.60070911,1848.9,1848.8,14.60421]
[1746157141457,1.5767,1849.2,1849.1,1.08133]
[1746157141955,2.00346173,1849.2,1849.1,2.73483]
[1746157143363,2.00346173,1849.2,1849.1,1.08133]
[1746157143764,1.08133,1849.1,1849.0,3.2078]
[1746157143956,2.66476,1849.1,1848.9,1.08143]
[1746157144157,1.7146,1849.0,1848.9,1.08143]
[1746157144359,3.72476173,1849.0,1848.9,1.08143]
[1746157145163,7.42076173,1849.0,1848.9,1.08143]
[1746157145563,8.50217173,1849.0,1848.8,5.92819]
[1746157145764,1.5834,1848.9,1848.8,5.92819]
[1746157145956,2.01016173,1848.9,1848.8,4.28929]
[1746157146962,2.01016173,1848.9,1848.8,1.08149]
[1746157147166,5.70616173,1848.9,1848.8,1.08149]
[1746157147762,3.696,1848.9,1848.8,4.28929]
[1746157147966,3.696,1848.9,1848.8,6.00939]
[1746157148269,1.6663,1849.1,1849.0,1.08139]
[1746157148457,2.09278692,1849.1,1849.0,1.08139]
[1746157149867,2.09278692,1849.1,1849.0,1.89909]
[1746157154475,0.42648692,1849.1,1849.0,5.10689]
[1746157154769,2.5099,1849.4,1849.3,1.08121]
[1746157154972,3.74967432,1849.4,1849.3,1.08121]
[1746157155267,7.44567432,1849.4,1849.3,1.08121]
[1746157155569,8.52683432,1849.4,1849.3,1.08121]
[1746157155871,1.08121,1849.3,1849.2,1.08124]
[1746157156170,6.41455,1849.3,1849.1,1.08131]
[1746157156371,0.42627432,1849.2,1849.1,1.08131]
[1746157156564,2.06357432,1849.2,1849.0,8.56585]
[1746157156866,1.6507,1849.1,1849.0,7.74815]
[1746157157071,7.41027432,1849.1,1849.0,7.74815]
[1746157157371,8.49160432,1849.1,1849.0,6.6668]
[1746157157572,8.49160432,1849.1,1849.0,4.28919]
[1746157158065,1.08145,1848.9,1848.8,1.08145]
[1746157158277,4.12227432,1848.9,1848.8,1.08145]
[1746157158666,5.83937432,1848.9,1848.8,1.08145]
[1746157158865,6.92082432,1848.9,1848.8,1.08145]
[1746157159268,1.08151,1848.8,1848.7,3.459]
[1746157159467,4.90828432,1848.8,1848.7,3.459]
[1746157159664,3.82677432,1848.8,1848.7,1.08157]
[1746157160273,7.52277432,1848.8,1848.7,1.08157]
[1746157161673,7.52277432,1848.8,1848.7,2.76007]
[1746157161976,7.52277432,1848.8,1848.7,1.08157]
[1746157162675,7.52277432,1848.8,1848.7,4.28937]
[1746157163173,3.82677432,1848.8,1848.7,5.96787]
[1746157163374,2.95487432,1848.8,1848.7,5.96787]
[1746157167376,2.95487432,1848.8,1848.7,2.76007]
[1746157167577,2.95487432,1848.8,1848.7,5.96787]
[1746157169381,0.42627432,1848.8,1848.7,5.96787]
[1746157170475,0.42627432,1848.8,1848.7,2.76007]
[1746157170674,1.24597432,1848.8,1848.7,2.76007]
[1746157170875,2.88667432,1848.8,1848.7,2.76007]
[1746157172174,0.42627432,1848.8,1848.7,2.76007]
[1746157172582,2.92287432,1849.0,1848.9,1.08145]
[1746157173084,7.70026432,1849.0,1848.9,1.08145]
[1746157173981,6.61887432,1849.0,1848.9,1.08145]
[1746157174484,7.70028432,1849.0,1848.9,1.08145]
[1746157174985,1.08146,1848.9,1848.8,1.08148]
[1746157175180,6.45236,1848.9,1848.8,1.08148]
[1746157175484,1.08151,1848.8,1848.7,1.08153]
[1746157175677,2.75641,1848.8,1848.7,1.08153]
[1746157175877,3.99578432,1848.8,1848.7,1.08153]
[1746157176078,7.69178432,1848.8,1848.7,1.08153]
[1746157176381,6.61027432,1848.8,1848.5,1.08164]
[1746157176685,3.5871,1848.7,1848.5,1.08164]
[1746157176877,0.8306,1848.7,1848.6,1.08162]
[1746157177078,4.5266,1848.7,1848.6,1.08162]
[1746157177278,5.60817,1848.7,1848.6,1.08162]
[1746157177482,6.03567858,1848.7,1848.6,1.08162]
[1746157177785,4.95410858,1848.7,1848.5,1.08164]
[1746157178087,1.50912858,1848.6,1848.5,1.08164]
[1746157178280,4.12350858,1848.6,1848.5,1.08164]
[1746157178675,5.20512858,1848.6,1848.5,1.08164]
[1746157179283,1.08168,1848.5,1848.4,40.8]
[1746157179488,1.92468,1848.5,1848.4,40.8]
[1746157179691,1.08189,1848.2,1847.9,6.6758]
[1746157179985,1.6782,1848.1,1848.0,1.08192]
[1746157180181,2.10570858,1848.1,1848.0,41.88192]
[1746157180587,2.10570858,1848.1,1848.0,43.57752]
[1746157181188,5.80170858,1848.1,1848.0,43.57752]
[1746157181890,5.80170858,1848.1,1848.0,41.88192]
[1746157183179,6.88362858,1848.1,1848.0,41.88192]
[1746157183380,5.80170858,1848.1,1848.0,41.88192]
[1746157184687,6.88362858,1848.1,1848.0,40.8]
[1746157185890,6.88362858,1848.1,1848.0,41.88198]
[1746157186083,6.88362858,1848.1,1848.0,40.8]
[1746157186283,5.80170858,1848.1,1847.7,4.28994]
[1746157186486,1.08207,1847.9,1847.7,3.2078]
[1746157186688,5.3742,1848.1,1847.9,1.08202]
[1746157186885,1.08198,1848.0,1847.9,1.08202]
[1746157187085,4.77798,1848.0,1847.9,1.08202]
[1746157187279,5.20421281,1848.0,1847.9,1.08202]
[1746157187693,4.12223281,1848.0,1847.9,1.08202]
[1746157188591,5.20421281,1848.0,1847.9,1.08202]
[1746157188992,4.12223281,1848.0,1847.9,1.08202]
[1746157189185,4.12223281,1848.0,1847.9,1.91792]
[1746157189387,4.12223281,1848.0,1847.9,3.49862]
[1746157189993,5.20421281,1848.0,1847.9,3.49862]
[1746157190196,4.12223281,1848.0,1847.9,3.49862]
[1746157190896,4.12223281,1848.0,1847.9,1.91792]
[1746157191592,5.20421281,1848.0,1847.9,1.08202]
[1746157192299,4.12223281,1848.0,1847.9,1.08202]
[1746157193399,5.20421281,1848.0,1847.9,1.08202]
[1746157194302,4.12223281,1848.0,1847.9,1.08202]
[1746157194600,6.89671281,1848.0,1847.9,1.08202]
[1746157196996,5.81473281,1848.0,1847.9,1.08202]
[1746157197499,5.3885,1848.0,1847.9,1.08202]
[1746157198496,5.81423067,1848.0,1847.9,1.08202]
[1746157198688,6.89621067,1848.0,1847.9,1.08202]
[1746157198894,5.81423067,1848.0,1847.9,1.08202]
[1746157199096,5.81423067,1848.0,1847.9,2.76142]
[1746157201201,5.81423067,1848.0,1847.9,1.08202]
[1746157202203,5.81423067,1848.0,1847.9,41.88202]
[1746157202402,5.81423067,1848.0,1847.9,43.50722]
[1746157202902,6.89621067,1848.0,1847.9,41.88202]
[1746157203103,6.47048,1848.0,1847.9,41.88202]
[1746157203306,6.89680362,1848.0,1847.9,41.88202]
[1746157204002,5.81482362,1848.0,1847.9,41.88202]
[1746157204204,6.89680362,1848.0,1847.9,41.88202]
[1746157204503,5.81482362,1848.0,1847.9,41.88202]
[1746157204895,5.81482362,1848.0,1847.9,43.60752]
[1746157205496,6.89680362,1848.0,1847.9,43.60752]
[1746157207607,6.89680362,1848.0,1847.9,41.88202]
[1746157209600,6.89680362,1848.0,1847.8,2.78364]
[1746157209802,2.77513,1847.9,1847.8,1.08204]
[1746157209994,1.08221,1847.6,1847.5,4.55024]
[1746157210200,4.44063,1847.8,1847.7,1.08215]
[1746157210702,3.78642508,1847.8,1847.6,1.08217]
[1746157210902,1.7106,1847.7,1847.6,1.08217]
[1746157211303,2.13852508,1847.7,1847.6,1.08217]
[1746157214201,1.7106,1847.7,1847.6,1.08217]
[1746157214510,3.22052147,1847.7,1847.6,1.08217]
[1746157214809,3.22052147,1847.7,1847.5,54.84203]
[1746157215105,2.03887147,1847.6,1847.5,54.84203]
[1746157226713,2.03887147,1847.6,1847.5,48.16623]
[1746157227815,0.42777147,1847.6,1847.5,51.37403]
[1746157228113,0.42777147,1847.7,1847.6,1.08221]
[1746157228308,3.60070911,1847.9,1847.8,1.08209]
[1746157228610,8.99622558,1847.9,1847.8,4.28989]
[1746157228815,8.99622558,1847.9,1847.8,12.73689]
[1746157229312,8.99622558,1847.9,1847.8,13.60839]
[1746157230314,8.99622558,1847.9,1847.8,19.01959]
[1746157232403,8.99622558,1847.9,1847.8,14.01959]
[1746157232916,2.4674,1848.4,1848.2,1.0818]
[1746157233512,1.7082,1848.3,1848.2,1.0818]
[1746157233710,1.7082,1848.3,1848.2,2.8119]
[1746157240914,0.8431,1848.5,1848.4,1.08174]
[1746157241122,1.6657,1848.5,1848.4,1.08174]
[1746157242309,3.4031,1848.5,1848.4,1.08174]
[1746157243121,7.0991,1848.5,1848.4,1.08174]
[1746157244318,3.4031,1848.5,1848.4,1.08174]
[1746157244522,4.48478,1848.5,1848.4,1.08174]
[1746157244721,3.4031,1848.5,1848.4,1.08174]
[1746157246720,3.4031,1848.5,1848.4,1.89524]
[1746157252223,2.5805,1848.5,1848.4,1.89524]
[1746157252818,2.5805,1848.5,1848.4,5.10304]
[1746157254324,2.5805,1848.5,1848.4,1.89524]
[1746157258428,6.6538,1848.9,1848.7,1.08152]
[1746157258626,3.328,1848.8,1848.7,1.08152]
[1746157259127,7.024,1848.8,1848.7,1.08152]
[1746157259930,8.10551,1848.8,1848.7,1.08152]
[1746157260432,7.024,1848.8,1848.7,1.08152]
[1746157261130,7.44787355,1848.8,1848.7,1.08152]
[1746157262030,8.52938355,1848.8,1848.7,1.08152]
[1746157263332,8.52938355,1848.8,1848.6,44.0078]
[1746157263333,1.08157,1848.7,1848.6,45.08941]
[1746157263529,2.65897,1848.7,1848.6,45.08942]
[1746157263927,3.08284355,1848.7,1848.6,4.28942]
[1746157264232,6.77884355,1848.7,1848.6,4.28942]
[1746157270030,6.77884355,1848.7,1848.5,40.8]
[1746157270031,1.08162,1848.6,1848.5,40.8]
[1746157270228,1.7083,1848.6,1848.3,1.08178]
[1746157270429,1.08174,1848.4,1848.3,1.08178]
[1746157270630,1.50561355,1848.4,1848.3,1.08178]
[1746157270825,3.21391355,1848.4,1848.3,1.08178]
[1746157271228,5.82817355,1848.4,1848.3,41.88178]
[1746157271431,5.82817355,1848.4,1848.3,42.69508]
[1746157273238,5.82817355,1848.4,1848.3,40.8]
[1746157273239,6.90991355,1848.4,1848.3,40.8]
[1746157273436,6.90991355,1848.4,1848.3,41.8818]
[1746157273732,5.82817355,1848.4,1848.3,41.8818]
[1746157275235,2.13217355,1848.4,1848.3,41.8818]
[1746157277328,0.42387355,1848.4,1848.3,41.8818]
[1746157277529,0.42387355,1848.4,1848.3,44.4412]
[1746157278040,0.42387355,1848.4,1848.3,49.4412]